bitfinex-derivatives/quotes_SOLF0:USTF0_20241218
["timestamp","ask_amount","ask_price","bid_price","bid_amount"]
[1734559844656,11.11138884,207.74,207.6,4.2]
[1734559844949,11.11138884,207.74,207.59,11.11138884]
[1734559844950,11.11138884,207.74,207.62,5.67812799]
[1734559845354,11.11138884,207.68,207.56,3.1882]
[1734559845551,11.11138884,207.65,207.56,3.1882]
[1734559845856,2.4099,207.59,207.56,3.1882]
[1734559846054,11.11138884,207.65,207.56,3.1882]
[1734559846948,11.11138884,207.65,207.56,9.08823854]
[1734559847154,2.41,207.58,207.56,9.08823854]
[1734559848053,3.132,207.67,207.55,2.9575]
[1734559848359,2.4102,207.56,207.53,4.2]
[1734559848660,2.4102,207.56,207.53,10.0878914]
[1734559850152,2.4102,207.56,207.53,5.8878914]
[1734559850554,6.084,207.67,207.52,4.2]
[1734559850759,2.8261,207.66,207.5,4.2]
[1734559851058,2.4106,207.53,207.52,5.79907317]
[1734559851559,2.4106,207.53,207.5,4.2]
[1734559851955,4.2,207.62,207.43,17.83610593]
[1734559852162,4.2,207.62,207.42,13.2733]
[1734559852460,4.2,207.61,207.44,17.83610593]
[1734559852659,17.83610593,207.64,207.48,17.83610593]
[1734559852861,4.2,207.63,207.48,17.83610593]
[1734559853162,4.2,207.63,207.49,4.2]
[1734559853364,4.2,207.65,207.52,17.83610593]
[1734559854062,2.8261,207.66,207.52,17.83610593]
[1734559854855,2.4098,207.6,207.54,2.4103]
[1734559855056,2.4098,207.6,207.52,17.83610593]
[1734559855257,2.4098,207.6,207.56,17.83610593]
[1734559856063,6.084,207.67,207.56,17.83610593]
[1734559857267,17.83610593,207.64,207.51,6.1699]
[1734559857463,4.18,207.63,207.51,6.1699]
[1734559857768,4.18,207.63,207.51,3.066]
[1734559858469,2.4107,207.52,207.51,3.066]
[1734559861673,2.4111,207.49,207.46,9.97727709]
[1734559862271,2.8303,207.62,207.46,9.97727709]
[1734559862473,5.86383333,207.59,207.46,9.97727709]
[1734559862669,2.8303,207.62,207.48,17.83610593]
[1734559862877,2.4103,207.56,207.52,17.83610593]
[1734559863175,11.80430484,207.67,207.52,17.83610593]
[1734559863973,11.80430484,207.67,207.53,4.18]
[1734559864171,11.80430484,207.67,207.53,10.6064]
[1734559864570,2.4104,207.54,207.53,4.18]
[1734559864979,17.83610593,207.65,207.47,7.4093]
[1734559865174,17.83610593,207.65,207.47,9.8205]
[1734559866071,29.64041077,207.67,207.49,20.24710593]
[1734559866265,2.4096,207.62,207.49,17.83610593]
[1734559866471,17.83610593,207.63,207.47,7.4093]
[1734559866768,17.83610593,207.63,207.47,9.8205]
[1734559866969,4.18,207.62,207.47,7.4093]
[1734559867966,11.15632887,207.58,207.47,7.4093]
[1734559868166,2.411,207.49,207.47,7.4093]
[1734559868668,11.15632887,207.58,207.47,7.4093]
[1734559868873,4.18,207.62,207.48,11.15632887]
[1734559869073,15.33632887,207.62,207.48,11.15632887]
[1734559869370,2.4108,207.52,207.48,11.15632887]
[1734559869575,4.18,207.62,207.48,11.15632887]
[1734559870176,2.4109,207.51,207.48,11.15632887]
[1734559871870,2.4109,207.51,207.47,7.4093]
[1734559872076,4.18,207.62,207.49,11.15632887]
[1734559872077,2.4109,207.5,207.49,11.15632887]
[1734559872276,4.18,207.62,207.49,11.15632887]
[1734559872478,15.33632887,207.63,207.49,11.15632887]
[1734559873078,2.4109,207.51,207.49,11.15632887]
[1734559873979,11.15632887,207.6,207.47,3.2293]
[1734559874379,11.15632887,207.57,207.47,3.2293]
[1734559874582,2.4111,207.48,207.47,3.2293]
[1734559876183,11.15632887,207.57,207.46,16.95360596]
[1734559876379,2.4113,207.47,207.46,16.95360596]
[1734559876975,11.15632887,207.57,207.43,2.4117]
[1734559876976,11.15632887,207.57,207.43,11.15632887]
[1734559877381,11.15632887,207.57,207.42,6.1139]
[1734559877579,11.15632887,207.57,207.44,5.80623724]
[1734559877775,3.1427,207.58,207.45,11.15632887]
[1734559877979,14.29902887,207.58,207.45,11.15632887]
[1734559878975,5.65400182,207.56,207.45,11.15632887]
[1734559879177,2.4116,207.45,207.42,17.27022887]
[1734559879780,5.65400182,207.56,207.42,17.27022887]
[1734559879976,5.65400182,207.56,207.42,23.19914633]
[1734559880490,2.4112,207.48,207.44,2.4116]
[1734559880689,5.65400182,207.56,207.42,23.19914633]
[1734559881080,2.4113,207.48,207.44,2.4116]
[1734559881593,5.65400182,207.56,207.44,2.4116]
[1734559881785,2.4113,207.47,207.44,2.4116]
[1734559882285,11.15632887,207.55,207.42,23.19914633]
[1734559882484,11.15632887,207.55,207.42,27.37914633]
[1734559882688,11.15632887,207.55,207.42,23.19914633]
[1734559882984,11.15632887,207.55,207.42,6.1139]
[1734559883287,2.4117,207.43,207.42,6.1139]
[1734559884191,2.4116,207.45,207.42,6.1139]
[1734559884690,11.15632887,207.55,207.42,6.1139]
[1734559884891,2.4117,207.44,207.42,6.1139]
[1734559885189,11.15632887,207.55,207.42,6.1139]
[1734559885388,2.4116,207.44,207.42,6.1139]
[1734559885791,11.15632887,207.55,207.42,6.1139]
[1734559885993,2.4112,207.48,207.44,2.4116]
[1734559886194,10.47460182,207.56,207.42,17.27022887]
[1734559887285,10.47460182,207.56,207.45,2.4114]
[1734559887286,2.4111,207.49,207.45,2.4114]
[1734559887592,14.29902887,207.58,207.45,11.15632887]
[1734559888188,2.4111,207.49,207.45,27.72949807]
[1734559888390,11.15632887,207.58,207.45,11.15632887]
[1734559888789,2.4109,207.51,207.46,16.5730692]
[1734559888989,11.15632887,207.58,207.46,14.1617692]
[1734559889386,2.411,207.5,207.46,16.5731692]
[1734559889591,2.411,207.5,207.47,14.1617692]
[1734559890188,11.15632887,207.58,207.47,14.1617692]
[1734559890595,11.15632887,207.58,207.46,14.1617692]
[1734559890901,2.411,207.49,207.46,14.1617692]
[1734559891293,11.15632887,207.58,207.46,14.1617692]
[1734559891494,2.4113,207.47,207.46,14.1617692]
[1734559891796,2.4113,207.47,207.44,3.1049]
[1734559891797,11.15632887,207.58,207.45,14.1617692]
[1734559892499,11.15632887,207.58,207.44,3.1049]
[1734559892698,11.15632887,207.58,207.44,17.2666692]
[1734559892898,11.15632887,207.58,207.44,3.1049]
[1734559893101,11.15632887,207.58,207.44,17.2666692]
[1734559893102,2.4114,207.47,207.44,17.2666692]
[1734559893598,11.15632887,207.58,207.44,17.2666692]
[1734559893799,3.2229,207.59,207.44,3.1049]
[1734559894000,11.15632887,207.58,207.44,17.2666692]
[1734559894297,5.88726686,207.56,207.45,14.1617692]
[1734559894799,5.88726686,207.56,207.44,3.1049]
[1734559894993,5.88726686,207.56,207.44,17.2666692]
[1734559895299,5.88726686,207.56,207.44,3.1049]
[1734559895702,2.4114,207.46,207.44,3.1049]
[1734559897304,11.15632887,207.55,207.42,31.43199807]
[1734559897503,11.15632887,207.55,207.42,17.27022887]
[1734559897697,2.4115,207.46,207.42,17.27022887]
[1734559897900,2.4115,207.46,207.42,19.68202887]
[1734559899805,11.15632887,207.55,207.42,8.5257]
[1734559900007,2.4115,207.45,207.42,8.5257]
[1734559901403,2.4116,207.45,207.42,6.1139]
[1734559902006,2.4116,207.45,207.44,7.14239957]
[1734559903203,2.4116,207.45,207.42,6.1139]
[1734559903204,7.14239957,207.51,207.42,13.25629957]
[1734559903508,2.4117,207.43,207.42,13.25629957]
[1734559904209,2.4117,207.43,207.42,10.05919957]
[1734559904509,2.4117,207.43,207.42,7.14239957]
[1734559904709,7.14239957,207.49,207.4,7.14239957]
[1734559904903,2.4119,207.42,207.4,7.14239957]
[1734559905107,7.14239957,207.47,207.39,12.79548263]
[1734559905306,7.14239957,207.47,207.38,7.14239957]
[1734559905508,7.14239957,207.45,207.38,7.14239957]
[1734559905708,7.14239957,207.47,207.4,7.14239957]
[1734559906110,11.16503465,207.5,207.37,2.4123]
[1734559906510,2.4118,207.43,207.39,2.4122]
[1734559906703,11.16503465,207.5,207.39,2.4122]
[1734559906903,13.11566686,207.56,207.42,11.16503465]
[1734559907104,24.28070151,207.56,207.42,11.16503465]
[1734559907307,24.28070151,207.56,207.42,13.57673465]
[1734559908213,2.4114,207.46,207.42,13.57673465]
[1734559908913,24.28070151,207.56,207.42,11.16503465]
[1734559909614,11.16503465,207.53,207.38,14.1617692]
[1734559909809,11.16503465,207.53,207.37,17.05023796]
[1734559910009,2.412,207.41,207.38,2.4123]
[1734559910713,2.4116,207.44,207.4,13.57703465]
[1734559910912,2.4116,207.44,207.4,11.16503465]
[1734559911111,11.16503465,207.53,207.4,11.16503465]
[1734559911313,2.4118,207.43,207.4,11.16503465]
[1734559912010,2.4118,207.43,207.4,13.57703465]
[1734559913007,2.4118,207.43,207.4,11.16503465]
[1734559914406,2.411,207.5,207.4,11.16503465]
[1734559914603,11.16503465,207.53,207.4,11.16503465]
[1734559915211,11.16503465,207.53,207.41,2.4119]
[1734559915717,2.4115,207.46,207.41,2.4119]
[1734559916315,2.4111,207.49,207.45,2.4115]
[1734559916816,4.16,207.58,207.43,15.32503465]
[1734559917017,2.4109,207.51,207.44,9.2161]
[1734559917718,2.4109,207.51,207.46,11.16503465]
[1734559918419,2.4109,207.51,207.47,2.4112]
[1734559919020,2.411,207.5,207.46,11.16503465]
[1734559919221,11.16503465,207.56,207.44,9.2161]
[1734559920720,2.4112,207.48,207.44,11.6277]
[1734559921122,11.16503465,207.56,207.44,9.2161]
[1734559922021,11.16503465,207.53,207.44,9.2161]
[1734559922320,11.16503465,207.53,207.41,2.4119]
[1734559922623,2.4116,207.44,207.39,15.32503465]
[1734559923119,2.4115,207.45,207.41,2.4119]
[1734559924322,11.16503465,207.53,207.39,15.32503465]
[1734559924520,11.16503465,207.53,207.42,2.4118]
[1734559925317,2.4115,207.46,207.42,2.4118]
[1734559925621,11.16503465,207.53,207.42,2.4118]
[1734559926022,7.14273983,207.51,207.43,7.14273983]
[1734559927721,2.4111,207.49,207.45,7.14273983]
[1734559927922,7.14273983,207.54,207.47,7.14273983]
[1734559928425,2.4108,207.51,207.49,7.14273983]
[1734559928724,7.14273983,207.56,207.49,7.14273983]
[1734559928926,2.4107,207.52,207.49,7.14273983]
[1734559930022,0.17957,207.6,207.48,11.15219554]
[1734559930228,0.17957,207.6,207.51,11.15219554]
[1734559930625,0.17957,207.6,207.54,11.15219554]
[1734559931133,0.17957,207.6,207.58,2.41]
[1734559931424,0.17957,207.6,207.57,4.16]
[1734559931629,2.4093,207.65,207.59,2.4099]
[1734559932327,11.15219554,207.72,207.6,11.15219554]
[1734559932328,17.05942299,207.72,207.6,11.15219554]
[1734559932628,49.20217368,207.8,207.63,11.15219554]
[1734559932833,2.4087,207.69,207.64,6.5692]
[1734559933431,2.4087,207.69,207.64,2.4092]
[1734559933631,11.15219554,207.7,207.59,4.16]
[1734559933834,11.15219554,207.67,207.59,4.16]
[1734559934234,2.4097,207.61,207.59,4.16]
[1734559934430,11.15219554,207.67,207.59,4.16]
[1734559934837,2.4098,207.6,207.59,4.16]
[1734559935534,3.2132,207.7,207.52,4.16]
[1734559935535,11.15219554,207.64,207.52,4.16]
[1734559935734,11.15219554,207.64,207.51,15.31219554]
[1734559935934,2.4101,207.57,207.52,2.4107]
[1734559936529,2.4097,207.61,207.54,13.56259554]
[1734559936733,11.15219554,207.67,207.54,11.15219554]
[1734559937337,11.15219554,207.67,207.54,16.8373301]
[1734559938139,14.36539554,207.7,207.54,5.68513456]
[1734559938438,14.36539554,207.7,207.55,11.15219554]
[1734559938638,2.4091,207.66,207.57,2.4101]
[1734559938835,14.36539554,207.7,207.57,2.4101]
[1734559939137,14.36539554,207.7,207.54,5.68513456]
[1734559939138,2.4101,207.58,207.54,5.68513456]
[1734559939343,11.15219554,207.64,207.51,5.74298086]
[1734559939839,2.4098,207.6,207.55,2.4102]
[1734559940633,15.31219554,207.67,207.55,2.4102]
[1734559941230,15.31219554,207.67,207.52,11.15219554]
[1734559941440,2.4099,207.59,207.54,2.4104]
[1734559941630,11.15219554,207.61,207.51,9.90298086]
[1734559942444,11.15219554,207.61,207.51,5.74298086]
[1734559944534,2.4103,207.56,207.51,8.15378086]
[1734559944934,2.4098,207.6,207.55,2.4103]
[1734559945240,2.4098,207.6,207.52,11.15219554]
[1734559946546,2.4098,207.6,207.55,2.4103]
[1734559947338,11.15219554,207.64,207.55,2.4103]
[1734559947742,2.4099,207.6,207.55,2.4103]
[1734559948642,2.4099,207.59,207.55,2.4103]
[1734559949546,2.4099,207.59,207.56,1.5248]
[1734559950047,2.4101,207.57,207.56,1.5248]
[1734559951644,2.4099,207.59,207.56,1.5248]
[1734559951843,11.15219554,207.67,207.56,1.5248]
[1734559952150,2.4098,207.6,207.56,1.5248]
[1734559952351,2.4098,207.6,207.56,3.1209]
[1734559952839,2.41,207.58,207.56,3.1209]
[1734559953240,11.15219554,207.64,207.56,3.1209]
[1734559953440,2.4101,207.57,207.56,3.1209]
[1734559954252,2.4099,207.59,207.56,3.1209]
[1734559954450,10.00972086,207.69,207.56,3.1209]
[1734559954654,10.00972086,207.69,207.57,4.14]
[1734559954847,2.4094,207.63,207.59,2.4099]
[1734559955052,14.36539554,207.7,207.57,11.15219554]
[1734559955254,11.15219554,207.73,207.6,11.15219554]
[1734559955448,2.4088,207.68,207.63,11.15219554]
[1734559955653,11.15219554,207.76,207.63,11.15219554]
[1734559956152,11.15219554,207.69,207.56,3.1209]
[1734559956355,11.15219554,207.69,207.57,4.14]
[1734559956656,2.4098,207.6,207.57,4.14]
[1734559956855,11.15219554,207.66,207.57,4.14]
[1734559958753,2.4099,207.59,207.57,4.14]
[1734559959655,11.15219554,207.63,207.56,3.1209]
[1734559960857,2.4101,207.58,207.56,3.1209]
[1734559961446,2.4101,207.57,207.56,3.1209]
[1734559962053,2.4106,207.53,207.51,5.74298086]
[1734559962551,11.15219554,207.59,207.51,5.74298086]
[1734559962752,2.4105,207.54,207.51,5.74298086]
[1734559963456,2.4103,207.56,207.51,8.15378086]
[1734559963664,2.4103,207.56,207.51,5.74298086]
[1734559964158,2.4103,207.56,207.51,8.15368086]
[1734559964458,2.41,207.58,207.52,4.14]
[1734559964759,2.41,207.58,207.53,2.4105]
[1734559965453,1.5182,207.63,207.53,2.4105]
[1734559965660,1.5182,207.63,207.52,4.14]
[1734559966155,2.4103,207.55,207.52,4.14]
[1734559966350,11.15219554,207.62,207.52,4.14]
[1734559966754,199.65550781,207.77,207.53,11.15219554]
[1734559966954,0.85831755,207.7,207.59,13.56199554]
[1734559967160,2.409,207.67,207.62,11.15219554]
[1734559967360,133.10367187,207.73,207.62,11.15219554]
[1734559967564,133.10367187,207.73,207.64,2.4092]
[1734559968056,11.15219554,207.74,207.64,2.4092]
[1734559968561,2.4089,207.68,207.64,2.4093]
[1734559970166,11.15219554,207.74,207.62,15.29219554]
[1734559970863,11.15219554,207.74,207.62,4.14]
[1734559971066,11.15219554,207.71,207.62,4.14]
[1734559971364,2.4095,207.63,207.6,3.1499]
[1734559971767,11.15219554,207.67,207.6,3.1499]
[1734559971955,2.4095,207.62,207.6,3.1499]
[1734559973068,2.4096,207.61,207.6,1.574]
[1734559973266,11.15219554,207.64,207.54,5.7244]
[1734559973462,11.15219554,207.64,207.54,3.2004]
[1734559973668,2.4101,207.58,207.54,3.2004]
[1734559974669,11.15219554,207.61,207.54,3.2004]
[1734559976072,2.4099,207.59,207.54,3.2004]
[1734559976260,11.15219554,207.61,207.54,1.616]
[1734559976567,11.15219554,207.58,207.51,5.74298086]
[1734559976969,11.15219554,207.58,207.48,3.1447]
[1734559977166,11.15219554,207.55,207.48,3.1447]
[1734559977466,2.411,207.49,207.48,1.5937]
[1734559978272,11.15219554,207.52,207.42,1.551]
[1734559978571,11.15219554,207.49,207.42,1.551]
[1734559978769,2.4117,207.43,207.42,1.551]
[1734559980072,11.15219554,207.49,207.4,1.4908]
[1734559981471,2.412,207.41,207.4,1.4908]
[1734559981773,15.27219554,207.49,207.4,1.4908]
[1734559982674,4.12,207.51,207.4,1.4908]
[1734559982867,2.4111,207.48,207.43,2.4117]
[1734559983073,2.4111,207.48,207.4,1.4908]
[1734559983568,2.4113,207.47,207.42,2.4118]
[1734559983973,2.4113,207.47,207.41,2.4119]
[1734559984175,2.4111,207.49,207.4,1.4908]
[1734559984474,11.15219554,207.52,207.4,3.9029]
[1734559984670,11.15219554,207.52,207.4,1.4908]
[1734559984975,2.4117,207.44,207.4,1.4908]
[1734559985374,11.15219554,207.52,207.4,1.4908]
[1734559985676,2.4115,207.45,207.4,1.4908]
[1734559986574,11.15219554,207.52,207.41,2.412]
[1734559986775,11.15219554,207.52,207.4,1.4908]
[1734559987566,4.12,207.54,207.24,133.30291539]
[1734559987873,11.15219554,207.39,207.26,53.43980195]
[1734559988069,15.27219554,207.42,207.31,16.91108751]
[1734559988271,11.15219554,207.42,207.31,16.91108751]
[1734559988573,11.15219554,207.42,207.31,19.32418751]
[1734559988777,11.15219554,207.42,207.31,16.91108751]
[1734559989075,2.4126,207.36,207.31,5.75889197]
[1734559989373,11.15219554,207.42,207.31,5.75889197]
[1734559989670,15.27219554,207.42,207.31,5.75889197]
[1734559990473,2.4128,207.34,207.31,5.75889197]
[1734559990674,15.27219554,207.42,207.31,5.75889197]
[1734559990969,11.15219554,207.5,207.31,5.75889197]
[1734559990970,2.4117,207.44,207.41,11.15219554]
[1734559991274,16.8688066,207.54,207.42,4.12]
[1734559991475,16.8688066,207.54,207.42,6.5317]
[1734559991672,16.8688066,207.54,207.42,8.0316]
[1734559991970,5.71661106,207.54,207.42,8.0316]
[1734559992371,2.4109,207.51,207.42,3.9116]
[1734559992677,5.71661106,207.54,207.43,4.12]
[1734559992871,2.411,207.5,207.43,4.12]
[1734559993071,17.85391374,207.61,207.47,17.85391374]
[1734559993374,1.486,207.69,207.52,2.4106]
[1734559993569,2.41,207.59,207.53,4.12]
[1734559993771,2.41,207.59,207.54,4.12]
[1734559994072,1.486,207.69,207.54,4.12]
[1734559994669,1.486,207.69,207.55,21.01621374]
[1734559994877,2.4092,207.66,207.58,2.41]
[1734559995069,1.486,207.69,207.55,21.01621374]
[1734559995275,17.85391374,207.74,207.55,21.01621374]
[1734559995469,2.4092,207.65,207.55,21.01621374]
[1734559995871,2.4086,207.71,207.59,17.85391374]
[1734559996078,5.64694189,207.79,207.63,17.85391374]
[1734559996678,5.64694189,207.79,207.64,4.12]
[1734559996876,5.64694189,207.79,207.61,5.84479602]
[1734559996877,17.85391374,207.76,207.61,5.84479602]
[1734559997072,17.85391374,207.67,207.58,4.12]
[1734559997273,17.85391374,207.67,207.58,9.91272915]
[1734559998277,17.85391374,207.67,207.58,4.12]
[1734559998776,17.85391374,207.67,207.57,9.8864428]
[1734559999874,17.85391374,207.67,207.57,4.12]
[1734560000582,17.85391374,207.59,207.35,53.43980195]
[1734560000877,17.85391374,207.59,207.48,5.65828585]
[1734560001270,17.85391374,207.55,207.44,4.12]
[1734560001979,4.12,207.58,207.46,5.93010305]
[1734560002275,17.85391374,207.59,207.46,5.93010305]
[1734560002480,17.85391374,207.59,207.47,1.6002]
[1734560002876,2.4102,207.57,207.47,1.6002]
[1734560003377,17.85391374,207.63,207.47,1.6002]
[1734560003573,19.33321374,207.67,207.51,17.85391374]
[1734560003774,17.85391374,207.67,207.52,5.6361]
[1734560004175,21.97391374,207.72,207.52,5.6361]
[1734560004371,17.85391374,207.68,207.52,5.6361]
[1734560004576,2.41,207.58,207.52,5.6361]
[1734560004985,1.5756,207.78,207.55,17.85391374]
[1734560005182,17.85391374,207.74,207.59,2.4099]
[1734560005379,17.85391374,207.74,207.6,1.537]
[1734560005787,2.4091,207.66,207.61,2.4096]
[1734560005986,17.85391374,207.74,207.62,1.5092]
[1734560006181,1.5756,207.78,207.62,1.5092]
[1734560006382,4.12,207.77,207.62,1.5092]
[1734560007781,2.4085,207.71,207.65,2.4091]
[1734560008284,1.5756,207.78,207.62,1.5092]
[1734560008580,17.85391374,207.76,207.62,1.5092]
[1734560008986,17.85391374,207.76,207.62,3.9187]
[1734560009181,17.85391374,207.76,207.62,1.5092]
[1734560009487,2.4092,207.65,207.62,1.5092]
[1734560009788,17.85391374,207.72,207.62,1.5092]
[1734560010377,2.4094,207.63,207.62,1.5092]
[1734560010582,17.85391374,207.72,207.6,1.537]
[1734560010787,17.85391374,207.68,207.57,5.66172325]
[1734560011884,4.08,207.7,207.57,5.66172325]
[1734560012584,2.409,207.67,207.57,5.66172325]
[1734560012785,4.08,207.7,207.57,5.66172325]
[1734560013090,17.85391374,207.72,207.57,5.66172325]
[1734560013790,2.4096,207.62,207.57,8.07182325]
[1734560014479,17.85391374,207.72,207.57,5.66172325]
[1734560015387,17.85391374,207.72,207.58,2.4099]
[1734560016489,2.4094,207.63,207.58,2.4099]
[1734560016787,17.85391374,207.72,207.57,23.51563699]
[1734560016989,2.409,207.67,207.57,23.51563699]
[1734560017381,17.85391374,207.76,207.57,23.51563699]
[1734560017382,17.85391374,207.76,207.61,17.85391374]
[1734560017586,1.5756,207.78,207.62,4.08]
[1734560017796,1.5756,207.78,207.63,1.4848]
[1734560017987,2.4082,207.74,207.63,3.8941]
[1734560018186,1.5756,207.78,207.63,3.8941]
[1734560018688,1.5756,207.78,207.65,2.4091]
[1734560019085,21.93391374,207.8,207.66,1.6106]
[1734560019292,17.85391374,207.8,207.66,1.6106]
[1734560019794,17.85391374,207.8,207.67,1.5077]
[1734560020191,17.85391374,207.8,207.68,2.4088]
[1734560020391,17.85391374,207.8,207.69,4.08]
[1734560020788,17.85391374,207.8,207.69,6.4887]
[1734560021192,2.4078,207.77,207.69,4.08]
[1734560021487,17.85391374,207.84,207.69,21.93391374]
[1734560022393,2.4079,207.77,207.72,2.4083]
[1734560022592,2.4079,207.77,207.73,1.6054]
[1734560023094,2.4079,207.77,207.73,4.0136]
[1734560024197,45.0229687,207.86,207.73,19.45931374]
[1734560024691,2.4073,207.82,207.77,2.4077]
[1734560024997,45.0229687,207.86,207.78,5.6962]
[1734560025296,2.4074,207.81,207.78,5.6962]
[1734560025697,45.0229687,207.86,207.78,5.6962]
[1734560025998,17.85391374,207.92,207.78,5.6962]
[1734560026199,17.85391374,207.92,207.79,1.4922]
[1734560027103,1.56,207.95,207.79,1.4922]
[1734560027605,2.4065,207.89,207.83,2.407]
[1734560027906,1.56,207.95,207.83,2.407]
[1734560028206,17.85391374,207.96,207.83,2.407]
[1734560028207,2.4065,207.89,207.83,2.407]
[1734560028502,17.85391374,207.96,207.83,2.407]
[1734560029209,17.85391374,207.96,207.79,1.4922]
[1734560029506,2.4068,207.86,207.79,1.4922]
[1734560029699,2.4068,207.86,207.81,2.4073]
[1734560030507,17.85391374,207.96,207.79,1.4922]
[1734560031205,2.4067,207.87,207.81,2.4073]
[1734560031906,17.85391374,207.96,207.81,2.4073]
[1734560032508,17.85391374,207.96,207.82,4.08]
[1734560033212,17.85391374,207.92,207.8,2.4074]
[1734560033406,17.85391374,207.92,207.81,4.08]
[1734560034208,17.85391374,207.88,207.74,4.08]
[1734560034406,17.85391374,207.84,207.74,4.08]
[1734560034608,2.4078,207.77,207.74,4.08]
[1734560034904,35.70782748,207.8,207.7,5.78115884]
[1734560036810,17.85391374,207.7,207.56,8.5867]
[1734560037009,17.85391374,207.66,207.5,17.85391374]
[1734560037212,17.85391374,207.66,207.51,4.06]
[1734560037412,17.85391374,207.66,207.52,4.06]
[1734560037605,17.85391374,207.66,207.56,5.74538996]
[1734560037606,2.4095,207.62,207.56,5.74538996]
[1734560037809,17.85391374,207.66,207.56,5.74538996]
[1734560038206,2.4101,207.58,207.56,5.74538996]
[1734560039214,17.85391374,207.66,207.56,5.74538996]
[1734560039714,2.4098,207.6,207.56,5.74538996]
[1734560040315,17.85391374,207.66,207.56,5.74538996]
[1734560040812,1.5784,207.68,207.56,5.74538996]
[1734560041513,2.4098,207.6,207.56,5.74538996]
[1734560042106,1.5784,207.68,207.56,5.74538996]
[1734560042305,17.85391374,207.66,207.56,5.74538996]
[1734560042705,2.41,207.58,207.56,5.74538996]
[1734560042913,17.85391374,207.66,207.5,17.85391374]
[1734560043216,17.85391374,207.66,207.5,4.06]
[1734560043516,17.85391374,207.66,207.5,21.91391374]
[1734560044214,2.41,207.58,207.51,2.4107]
[1734560044412,1.8528,207.67,207.54,5.77016862]
[1734560044817,2.4097,207.61,207.54,5.77016862]
[1734560046411,2.4095,207.63,207.54,23.62408236]
[1734560046812,17.85391374,207.7,207.58,2.41]
[1734560047011,4.06,207.73,207.55,4.06]
[1734560047218,4.06,207.77,207.58,17.85391374]
[1734560047417,1.4616,207.78,207.62,17.85391374]
[1734560047711,334.23637968,207.84,207.7,17.85391374]
[1734560047918,334.23637968,207.84,207.71,8.8043]
[1734560047919,332.75917968,207.84,207.71,8.8043]
[1734560048119,17.85391374,207.88,207.74,17.85391374]
[1734560048120,2.4072,207.83,207.74,17.85391374]
[1734560048308,17.85391374,207.88,207.74,20.26201374]
[1734560048514,17.85391374,207.88,207.74,17.85391374]
[1734560049017,2.4076,207.79,207.74,17.85391374]
[1734560049614,23.69148128,207.92,207.76,5.79755586]
[1734560050118,2.4069,207.85,207.78,2.4077]
[1734560050312,2.4069,207.85,207.79,4.06]
[1734560050823,17.85391374,207.92,207.79,4.06]
[1734560051517,2.4065,207.89,207.79,4.06]
[1734560051717,17.85391374,207.92,207.79,4.06]
[1734560052016,2.407,207.84,207.79,4.06]
[1734560052211,17.85391374,207.92,207.79,4.06]
[1734560053016,1.4616,207.94,207.79,4.06]
[1734560054120,2.4066,207.88,207.79,4.06]
[1734560054320,1.4616,207.94,207.79,4.06]
[1734560055524,2.4064,207.89,207.79,4.06]
[1734560056124,2.4064,207.89,207.84,2.407]
[1734560056720,1.6014,208.01,207.86,17.85391374]
[1734560056920,1.6014,208.01,207.87,4.06]
[1734560057119,1.6014,208.01,207.87,5.6611]
[1734560058027,1.9313,208.04,207.9,17.85391374]
[1734560058528,2.4056,207.96,207.9,17.85391374]
[1734560059026,2.4058,207.94,207.9,17.85391374]
[1734560059325,1.5478,208.04,207.9,17.85391374]
[1734560059729,2.4057,207.96,207.9,20.26021374]
[1734560060028,1.5478,208.04,207.9,20.26021374]
[1734560060826,1.5478,208.04,207.9,17.85391374]
[1734560061431,1.5478,208.04,207.93,2.4059]
[1734560061629,1.5478,208.04,207.94,4.06]
[1734560062331,2.4055,207.97,207.94,4.06]
[1734560062527,1.5478,208.04,207.94,4.06]
[1734560062825,1.5478,208.04,207.93,5.86470664]
[1734560063131,1.5478,208.04,207.84,1.5872]
[1734560063132,17.85391374,208.01,207.84,1.5872]